[Event "Titled Tuesday Blitz May 16 Early 2023"]
[White "Li, Hui"]
[Black "KSho99"]
[WhiteFideId "15400310"]
[WhiteElo "1966"]
[BlackElo "2161"]
[Result "0-1"]
[Round "07"]
[TimeControl "180+2"]
[Date "2023.05.16"]
[WhiteClock "0:00:03"]
[BlackClock "0:00:06"]

1. e4 {[%clk 0:03:00]}  e6 {[%clk 0:03:00]} 2. d4 {[%clk 0:03:00]}  d5 {[%clk 0:03:00]} 3. Nd2 {[%clk 0:03:01]}  Be7 {[%clk 0:03:00]} 4. Bd3 {[%clk 0:03:00]}  c5 {[%clk 0:02:53]} 5. dxc5 {[%clk 0:03:01]}  Nf6 {[%clk 0:02:51]} 6. Qe2 {[%clk 0:02:59]}  Nc6 {[%clk 0:02:38]} 7. Ngf3 {[%clk 0:02:56]}  O-O {[%clk 0:02:35]} 8. O-O {[%clk 0:02:36]}  Nb4 {[%clk 0:02:07]} 9. e5 {[%clk 0:02:16]}  Nd7 {[%clk 0:02:01]} 10. Nb3 {[%clk 0:02:12]}  Nxd3 {[%clk 0:01:48]} 11. Qxd3 {[%clk 0:01:56]}  Qc7 {[%clk 0:01:32]} 12. Bg5 {[%clk 0:01:32]}  Nxe5 {[%clk 0:01:08]} 13. Nxe5 {[%clk 0:01:28]}  Bxg5 {[%clk 0:01:08]} 14. f4 {[%clk 0:01:19]}  Be7 {[%clk 0:01:01]} 15. Qe3 {[%clk 0:01:11]}  b6 {[%clk 0:00:43]} 16. cxb6 {[%clk 0:00:59]}  Qxb6 {[%clk 0:00:32]} 17. Qxb6 {[%clk 0:00:58]}  axb6 {[%clk 0:00:33]} 18. a3 {[%clk 0:00:55]}  Ba6 {[%clk 0:00:29]} 19. Rfd1 {[%clk 0:00:54]}  Rfc8 {[%clk 0:00:27]} 20. c3 {[%clk 0:00:49]}  g5 {[%clk 0:00:16]} 21. g3 {[%clk 0:00:40]}  Bb5 {[%clk 0:00:13]} 22. Nd4 {[%clk 0:00:39]}  Be8 {[%clk 0:00:08]} 23. Rf1 {[%clk 0:00:17]}  f6 {[%clk 0:00:07]} 24. Nd3 {[%clk 0:00:13]}  gxf4 {[%clk 0:00:05]} 25. gxf4 {[%clk 0:00:12]}  Bg6 {[%clk 0:00:03]} 26. Rad1 {[%clk 0:00:10]}  Kf7 {[%clk 0:00:01]} 27. f5 {[%clk 0:00:10]}  exf5 {[%clk 0:00:01]} 28. Nxf5 {[%clk 0:00:11]}  Bc5+ {[%clk 0:00:01]} 29. Nxc5 {[%clk 0:00:11]}  Rxc5 {[%clk 0:00:01]} 30. Nd4 {[%clk 0:00:10]}  Be4 {[%clk 0:00:01]} 31. Kf2 {[%clk 0:00:11]}  Rg8 {[%clk 0:00:01]} 32. Rg1 {[%clk 0:00:11]}  Rcc8 {[%clk 0:00:01]} 33. Rxg8 {[%clk 0:00:11]}  Rxg8 {[%clk 0:00:02]} 34. Rg1 {[%clk 0:00:11]}  Rxg1 {[%clk 0:00:02]} 35. Kxg1 {[%clk 0:00:12]}  f5 {[%clk 0:00:02]} 36. Kf2 {[%clk 0:00:13]}  f4 {[%clk 0:00:02]} 37. Ne2 {[%clk 0:00:13]}  f3 {[%clk 0:00:02]} 38. Nd4 {[%clk 0:00:13]}  Kf6 {[%clk 0:00:02]} 39. Nxf3 {[%clk 0:00:13]}  Kf5 {[%clk 0:00:02]} 40. Nd4+ {[%clk 0:00:13]}  Kf4 {[%clk 0:00:02]} 41. b4 {[%clk 0:00:09]}  Kg4 {[%clk 0:00:03]} 42. a4 {[%clk 0:00:08]}  Kh3 {[%clk 0:00:03]} 43. Kg1 {[%clk 0:00:08]}  Bd3 {[%clk 0:00:03]} 44. a5 {[%clk 0:00:08]}  bxa5 {[%clk 0:00:03]} 45. bxa5 {[%clk 0:00:09]}  Ba6 {[%clk 0:00:03]} 46. Nc6 {[%clk 0:00:09]}  Kg4 {[%clk 0:00:03]} 47. Nb4 {[%clk 0:00:07]}  Bb7 {[%clk 0:00:02]} 48. a6 {[%clk 0:00:07]}  Ba8 {[%clk 0:00:03]} 49. Kf2 {[%clk 0:00:07]}  Kf4 {[%clk 0:00:03]} 50. Nc6 {[%clk 0:00:07]}  Bxc6 {[%clk 0:00:02]} 51. Ke2 {[%clk 0:00:06]}  Ke4 {[%clk 0:00:02]} 52. Kd2 {[%clk 0:00:06]}  h5 {[%clk 0:00:01]} 53. a7 {[%clk 0:00:04]}  Ba8 {[%clk 0:00:02]} 54. Ke2 {[%clk 0:00:04]}  h4 {[%clk 0:00:03]} 55. Kd2 {[%clk 0:00:04]}  Kf4 {[%clk 0:00:03]} 56. Ke2 {[%clk 0:00:04]}  Kg4 {[%clk 0:00:03]} 57. Kf2 {[%clk 0:00:04]}  Kh3 {[%clk 0:00:04]} 58. Kg1 {[%clk 0:00:05]}  Bb7 {[%clk 0:00:04]} 59. Kf1 {[%clk 0:00:02]}  Kxh2 {[%clk 0:00:04]} 60. Kf2 {[%clk 0:00:03]}  Ba8 {[%clk 0:00:04]} 61. Kf1 {[%clk 0:00:03]}  h3 {[%clk 0:00:04]} 62. Kf2 {[%clk 0:00:03]}  Bb7 {[%clk 0:00:04]} 63. Kf1 {[%clk 0:00:04]}  Kg3 {[%clk 0:00:05]} 64. Kg1 {[%clk 0:00:04]}  h2+ {[%clk 0:00:05]} 65. Kh1 {[%clk 0:00:03]}  d4# {[%clk 0:00:06]} 0-1


[Site "https://www.chess.com"]

[Event "Titled Tuesday Blitz May 16 Early 2023"]
[White "Topalov, Aleksandar"]
[Black "Brown, Raehanna"]
[WhiteFideId "925659"]
[BlackFideId "7402740"]
[WhiteElo "2151"]
[BlackElo "1655"]
[Result "1-0"]
[Round "07"]
[TimeControl "180+2"]
[Date "2023.05.16"]
[WhiteClock "0:01:13"]
[BlackClock "0:00:12"]

1. b3 {[%clk 0:03:00]}  Nf6 {[%clk 0:02:58]} 2. Bb2 {[%clk 0:03:00]}  g6 {[%clk 0:02:59]} 3. Bxf6 {[%clk 0:02:59]}  exf6 {[%clk 0:02:59]} 4. c4 {[%clk 0:02:59]}  Bg7 {[%clk 0:03:00]} 5. Nc3 {[%clk 0:02:59]}  O-O {[%clk 0:03:01]} 6. e3 {[%clk 0:03:00]}  b6 {[%clk 0:03:00]} 7. Be2 {[%clk 0:02:51]}  Bb7 {[%clk 0:02:58]} 8. Bf3 {[%clk 0:02:52]}  c6 {[%clk 0:02:47]} 9. Nge2 {[%clk 0:02:49]}  Na6 {[%clk 0:02:45]} 10. d4 {[%clk 0:02:47]}  d5 {[%clk 0:02:43]} 11. cxd5 {[%clk 0:02:46]}  cxd5 {[%clk 0:02:44]} 12. O-O {[%clk 0:02:46]}  Rc8 {[%clk 0:02:41]} 13. g3 {[%clk 0:02:42]}  Qd7 {[%clk 0:02:30]} 14. Rc1 {[%clk 0:02:37]}  Nb8 {[%clk 0:02:09]} 15. Nf4 {[%clk 0:02:36]}  h5 {[%clk 0:01:18]} 16. Bg2 {[%clk 0:02:19]}  Rxc3 {[%clk 0:00:58]} 17. Rxc3 {[%clk 0:02:17]}  Na6 {[%clk 0:00:57]} 18. Qf3 {[%clk 0:02:09]}  Rd8 {[%clk 0:00:54]} 19. a3 {[%clk 0:02:03]}  Nc7 {[%clk 0:00:50]} 20. Rc2 {[%clk 0:01:41]}  Nb5 {[%clk 0:00:40]} 21. a4 {[%clk 0:01:38]}  Nd6 {[%clk 0:00:40]} 22. Rfc1 {[%clk 0:01:36]}  Ba8 {[%clk 0:00:20]} 23. Rc7 {[%clk 0:01:32]}  Qf5 {[%clk 0:00:18]} 24. Nxd5 {[%clk 0:01:18]}  Nc8 {[%clk 0:00:14]} 25. Qxf5 {[%clk 0:01:14]}  gxf5 {[%clk 0:00:12]} 26. Rxc8 {[%clk 0:01:13]} 1-0


[Site "https://www.chess.com"]

[Event "Titled Tuesday Blitz May 16 Early 2023"]
[White "dDobravcan"]
[Black "Fernandez Siles, Luis"]
[BlackFideId "2209420"]
[WhiteElo "2139"]
[BlackElo "2195"]
[Result "1-0"]
[Round "07"]
[TimeControl "180+2"]
[Date "2023.05.16"]
[WhiteClock "0:01:52"]
[BlackClock "0:00:28"]

1. d4 {[%clk 0:03:00]}  Nf6 {[%clk 0:02:59]} 2. Nc3 {[%clk 0:03:01]}  d5 {[%clk 0:02:58]} 3. Bf4 {[%clk 0:02:59]}  c5 {[%clk 0:02:54]} 4. e4 {[%clk 0:02:58]}  Nxe4 {[%clk 0:02:53]} 5. Nxe4 {[%clk 0:02:56]}  dxe4 {[%clk 0:02:53]} 6. d5 {[%clk 0:02:57]}  Nd7 {[%clk 0:02:32]} 7. Qd2 {[%clk 0:02:49]}  g6 {[%clk 0:02:26]} 8. O-O-O {[%clk 0:02:48]}  Bg7 {[%clk 0:02:26]} 9. Bh6 {[%clk 0:02:46]}  Bxh6 {[%clk 0:02:05]} 10. Qxh6 {[%clk 0:02:44]}  Nf6 {[%clk 0:02:05]} 11. f3 {[%clk 0:02:38]}  exf3 {[%clk 0:02:02]} 12. Nxf3 {[%clk 0:02:33]}  Bg4 {[%clk 0:02:01]} 13. Bb5+ {[%clk 0:02:20]}  Bd7 {[%clk 0:02:00]} 14. Bxd7+ {[%clk 0:02:09]}  Qxd7 {[%clk 0:02:01]} 15. Ne5 {[%clk 0:02:09]}  Qa4 {[%clk 0:01:43]} 16. Kb1 {[%clk 0:02:08]}  Nd7 {[%clk 0:01:15]} 17. b3 {[%clk 0:01:54]}  Qg4 {[%clk 0:00:28]} 18. Nxg4 {[%clk 0:01:52]} 1-0


[Site "https://www.chess.com"]

[Event "Titled Tuesday Blitz May 16 Early 2023"]
[White "Skaric, Djuro"]
[Black "ritanovikova"]
[WhiteFideId "934569"]
[WhiteElo "2282"]
[BlackElo "2131"]
[Result "1/2-1/2"]
[Round "07"]
[TimeControl "180+2"]
[Date "2023.05.16"]
[WhiteClock "0:00:30"]
[BlackClock "0:00:17"]

1. g3 {[%clk 0:03:00]}  d5 {[%clk 0:03:00]} 2. Bg2 {[%clk 0:03:00]}  e5 {[%clk 0:03:00]} 3. d3 {[%clk 0:03:01]}  Nf6 {[%clk 0:02:33]} 4. Nf3 {[%clk 0:03:00]}  e4 {[%clk 0:02:11]} 5. dxe4 {[%clk 0:02:59]}  dxe4 {[%clk 0:02:11]} 6. Qxd8+ {[%clk 0:02:59]}  Kxd8 {[%clk 0:02:12]} 7. Ng5 {[%clk 0:02:59]}  Be6 {[%clk 0:01:45]} 8. Nxe4 {[%clk 0:02:56]}  Nxe4 {[%clk 0:01:44]} 9. Bxe4 {[%clk 0:02:56]}  c6 {[%clk 0:01:42]} 10. Bd2 {[%clk 0:02:55]}  Kc7 {[%clk 0:01:42]} 11. Nc3 {[%clk 0:02:55]}  Nd7 {[%clk 0:01:41]} 12. a3 {[%clk 0:02:55]}  Nf6 {[%clk 0:01:41]} 13. Bf3 {[%clk 0:02:55]}  Bc5 {[%clk 0:01:40]} 14. O-O {[%clk 0:02:53]}  h6 {[%clk 0:01:37]} 15. Rad1 {[%clk 0:02:52]}  g5 {[%clk 0:01:35]} 16. Ne4 {[%clk 0:02:46]}  Nxe4 {[%clk 0:01:33]} 17. Bxe4 {[%clk 0:02:45]}  f5 {[%clk 0:01:34]} 18. Bg2 {[%clk 0:02:37]}  Bc4 {[%clk 0:01:33]} 19. Rfe1 {[%clk 0:02:34]}  Rhe8 {[%clk 0:01:33]} 20. e4 {[%clk 0:02:32]}  fxe4 {[%clk 0:01:24]} 21. Rxe4 {[%clk 0:02:32]}  Rxe4 {[%clk 0:01:18]} 22. Bxe4 {[%clk 0:02:32]}  Rd8 {[%clk 0:01:17]} 23. Ba5+ {[%clk 0:02:17]}  b6 {[%clk 0:01:17]} 24. Rxd8 {[%clk 0:02:16]}  Kxd8 {[%clk 0:01:18]} 25. Bc3 {[%clk 0:02:15]}  Kd7 {[%clk 0:01:04]} 26. Bg7 {[%clk 0:02:09]}  h5 {[%clk 0:01:01]} 27. b4 {[%clk 0:02:06]}  Be7 {[%clk 0:00:58]} 28. Bd4 {[%clk 0:02:04]}  a5 {[%clk 0:00:42]} 29. c3 {[%clk 0:02:02]}  axb4 {[%clk 0:00:41]} 30. axb4 {[%clk 0:02:02]}  c5 {[%clk 0:00:42]} 31. bxc5 {[%clk 0:02:02]}  bxc5 {[%clk 0:00:43]} 32. Be3 {[%clk 0:02:01]}  Be6 {[%clk 0:00:37]} 33. f4 {[%clk 0:01:58]}  gxf4 {[%clk 0:00:35]} 34. gxf4 {[%clk 0:01:56]}  Bf6 {[%clk 0:00:35]} 35. Bd2 {[%clk 0:01:53]}  Kd6 {[%clk 0:00:31]} 36. Kf2 {[%clk 0:01:52]}  Bd5 {[%clk 0:00:30]} 37. Ke3 {[%clk 0:01:51]}  Bf7 {[%clk 0:00:24]} 38. Kf3 {[%clk 0:01:44]}  Be6 {[%clk 0:00:24]} 39. f5 {[%clk 0:01:43]}  Bf7 {[%clk 0:00:23]} 40. Bd3 {[%clk 0:01:37]}  Kd5 {[%clk 0:00:22]} 41. Kf4 {[%clk 0:01:24]}  c4 {[%clk 0:00:22]} 42. Be4+ {[%clk 0:01:24]}  Kc5 {[%clk 0:00:22]} 43. Bf3 {[%clk 0:01:20]}  Kb5 {[%clk 0:00:21]} 44. Ke4 {[%clk 0:01:13]}  Ka4 {[%clk 0:00:21]} 45. Bd1+ {[%clk 0:01:12]}  Ka3 {[%clk 0:00:20]} 46. Bc1+ {[%clk 0:01:10]}  Ka2 {[%clk 0:00:21]} 47. h4 {[%clk 0:01:00]}  Kb1 {[%clk 0:00:21]} 48. Bg5 {[%clk 0:00:59]}  Bxc3 {[%clk 0:00:20]} 49. f6 {[%clk 0:00:53]}  Be1 {[%clk 0:00:17]} 50. Ke5 {[%clk 0:00:29]}  c3 {[%clk 0:00:17]} 51. Kd6 {[%clk 0:00:30]}  c2 {[%clk 0:00:18]} 52. Bxc2+ {[%clk 0:00:29]}  Kxc2 {[%clk 0:00:19]} 53. Ke7 {[%clk 0:00:29]}  Bg6 {[%clk 0:00:18]} 54. f7 {[%clk 0:00:29]}  Bxf7 {[%clk 0:00:16]} 55. Kxf7 {[%clk 0:00:30]}  Bxh4 {[%clk 0:00:16]} 56. Bxh4 {[%clk 0:00:29]}  Kd3 {[%clk 0:00:16]} 57. Kg6 {[%clk 0:00:30]}  Ke4 {[%clk 0:00:17]} 58. Kxh5 {[%clk 0:00:30]} 1/2-1/2


[Site "https://www.chess.com"]

[Event "Titled Tuesday Blitz May 16 Early 2023"]
[White "Llanos, Guillermo"]
[Black "Sanchez, Robert"]
[WhiteFideId "100358"]
[BlackFideId "2034360"]
[WhiteElo "2225"]
[BlackElo "1872"]
[Result "1-0"]
[Round "07"]
[TimeControl "180+2"]
[Date "2023.05.16"]
[WhiteClock "0:01:27"]
[BlackClock "0:02:25"]

1. Nf3 {[%clk 0:02:56]}  d5 {[%clk 0:02:57]} 2. g3 {[%clk 0:02:56]}  Nc6 {[%clk 0:02:56]} 3. d4 {[%clk 0:02:55]}  Bf5 {[%clk 0:02:56]} 4. Bg2 {[%clk 0:02:54]}  Qd7 {[%clk 0:02:56]} 5. c4 {[%clk 0:02:48]}  e6 {[%clk 0:02:56]} 6. O-O {[%clk 0:02:18]}  O-O-O {[%clk 0:02:53]} 7. Nc3 {[%clk 0:02:16]}  h5 {[%clk 0:02:53]} 8. Nh4 {[%clk 0:02:06]}  Bh7 {[%clk 0:02:51]} 9. cxd5 {[%clk 0:02:06]}  exd5 {[%clk 0:02:48]} 10. Nxd5 {[%clk 0:02:04]}  Nge7 {[%clk 0:02:47]} 11. Nxe7+ {[%clk 0:02:03]}  Bxe7 {[%clk 0:02:47]} 12. Nf3 {[%clk 0:01:59]}  h4 {[%clk 0:02:44]} 13. Be3 {[%clk 0:01:49]}  Be4 {[%clk 0:02:43]} 14. Qa4 {[%clk 0:01:42]}  Kb8 {[%clk 0:02:39]} 15. d5 {[%clk 0:01:29]}  Bxd5 {[%clk 0:02:25]} 16. Ne5 {[%clk 0:01:27]} 1-0


[Site "https://www.chess.com"]

[Event "Titled Tuesday Blitz May 16 Early 2023"]
[White "Torres Dominguez, David"]
[Black "Reprintsev, Alexander"]
[WhiteFideId "2220857"]
[BlackFideId "14100541"]
[WhiteElo "1999"]
[BlackElo "2218"]
[Result "0-1"]
[Round "07"]
[TimeControl "180+2"]
[Date "2023.05.16"]
[WhiteClock "0:00:00"]
[BlackClock "0:01:23"]

1. e4 {[%clk 0:03:00]}  d5 {[%clk 0:02:52]} 2. exd5 {[%clk 0:02:54]}  Qxd5 {[%clk 0:02:48]} 3. Nc3 {[%clk 0:02:54]}  Qa5 {[%clk 0:02:47]} 4. Bc4 {[%clk 0:02:52]}  Nf6 {[%clk 0:02:47]} 5. d3 {[%clk 0:02:50]}  Bg4 {[%clk 0:02:46]} 6. f3 {[%clk 0:02:48]}  Be6 {[%clk 0:02:46]} 7. Bxe6 {[%clk 0:02:46]}  fxe6 {[%clk 0:02:47]} 8. Ne2 {[%clk 0:02:44]}  Nc6 {[%clk 0:02:46]} 9. O-O {[%clk 0:02:43]}  e5 {[%clk 0:02:45]} 10. Ng3 {[%clk 0:02:40]}  e6 {[%clk 0:02:45]} 11. Nge4 {[%clk 0:02:32]}  O-O-O {[%clk 0:02:44]} 12. Qe2 {[%clk 0:02:28]}  h6 {[%clk 0:02:43]} 13. Kh1 {[%clk 0:02:26]}  Be7 {[%clk 0:02:41]} 14. Be3 {[%clk 0:02:24]}  Nd5 {[%clk 0:02:40]} 15. Bg1 {[%clk 0:02:19]}  Nf4 {[%clk 0:02:37]} 16. Qe3 {[%clk 0:02:16]}  Nd4 {[%clk 0:02:34]} 17. Rf2 {[%clk 0:02:13]}  g5 {[%clk 0:02:33]} 18. a3 {[%clk 0:02:10]}  Qa6 {[%clk 0:02:30]} 19. Ng3 {[%clk 0:02:03]}  Bf6 {[%clk 0:02:19]} 20. Re1 {[%clk 0:01:59]}  h5 {[%clk 0:02:18]} 21. Nge4 {[%clk 0:01:54]}  Be7 {[%clk 0:02:18]} 22. Na2 {[%clk 0:01:41]}  g4 {[%clk 0:02:13]} 23. Nb4 {[%clk 0:01:35]}  Qb6 {[%clk 0:02:09]} 24. c3 {[%clk 0:01:31]}  Nf5 {[%clk 0:02:06]} 25. Qc1 {[%clk 0:01:27]}  c5 {[%clk 0:01:58]} 26. Rd2 {[%clk 0:01:15]}  Qc7 {[%clk 0:01:56]} 27. Qb1 {[%clk 0:01:01]}  cxb4 {[%clk 0:01:53]} 28. axb4 {[%clk 0:01:01]}  gxf3 {[%clk 0:01:52]} 29. gxf3 {[%clk 0:00:55]}  Rhg8 {[%clk 0:01:51]} 30. Qa2 {[%clk 0:00:51]}  b6 {[%clk 0:01:45]} 31. Qa6+ {[%clk 0:00:47]}  Qb7 {[%clk 0:01:43]} 32. Qb5 {[%clk 0:00:48]}  Rd5 {[%clk 0:01:42]} 33. Qa4 {[%clk 0:00:44]}  Rxd3 {[%clk 0:01:37]} 34. Rxd3 {[%clk 0:00:36]}  Nxd3 {[%clk 0:01:36]} 35. Re2 {[%clk 0:00:33]}  Nf4 {[%clk 0:01:32]} 36. Rd2 {[%clk 0:00:31]}  Rd8 {[%clk 0:01:27]} 37. Rxd8+ {[%clk 0:00:28]}  Kxd8 {[%clk 0:01:27]} 38. Qd1+ {[%clk 0:00:22]}  Ke8 {[%clk 0:01:25]} 39. b5 {[%clk 0:00:12]}  Qd5 {[%clk 0:01:23]} 40. Qa4 {[%clk 0:00:00]}  Qd3 {[%clk 0:01:23]} 0-1


[Site "https://www.chess.com"]

[Event "Titled Tuesday Blitz May 16 Early 2023"]
[White "Przybylski, Wojciech"]
[Black "De Souza, Cristiano Gomes"]
[WhiteFideId "1117599"]
[BlackFideId "2151758"]
[WhiteElo "2222"]
[BlackElo "2068"]
[Result "1-0"]
[Round "07"]
[TimeControl "180+2"]
[Date "2023.05.16"]
[WhiteClock "0:00:11"]
[BlackClock "0:00:46"]

1. d4 {[%clk 0:02:59]}  Nf6 {[%clk 0:02:59]} 2. c4 {[%clk 0:02:58]}  g6 {[%clk 0:02:59]} 3. Nc3 {[%clk 0:02:58]}  Bg7 {[%clk 0:02:59]} 4. e4 {[%clk 0:02:58]}  d6 {[%clk 0:03:00]} 5. g3 {[%clk 0:02:55]}  O-O {[%clk 0:02:59]} 6. Bg2 {[%clk 0:02:55]}  Nc6 {[%clk 0:02:59]} 7. Nge2 {[%clk 0:02:55]}  e5 {[%clk 0:02:56]} 8. d5 {[%clk 0:02:55]}  Na5 {[%clk 0:02:54]} 9. b3 {[%clk 0:02:53]}  c5 {[%clk 0:02:54]} 10. O-O {[%clk 0:02:52]}  a6 {[%clk 0:02:54]} 11. a4 {[%clk 0:02:40]}  Bd7 {[%clk 0:02:47]} 12. Re1 {[%clk 0:02:26]}  Rb8 {[%clk 0:02:35]} 13. Bf1 {[%clk 0:02:20]}  b5 {[%clk 0:02:31]} 14. cxb5 {[%clk 0:02:14]}  axb5 {[%clk 0:02:31]} 15. Bg5 {[%clk 0:01:46]}  b4 {[%clk 0:02:23]} 16. Na2 {[%clk 0:01:44]}  h6 {[%clk 0:02:16]} 17. Bxf6 {[%clk 0:01:43]}  Bxf6 {[%clk 0:02:15]} 18. Nec1 {[%clk 0:01:41]}  Bg7 {[%clk 0:02:13]} 19. Rb1 {[%clk 0:01:39]}  f5 {[%clk 0:02:09]} 20. Bd3 {[%clk 0:01:38]}  f4 {[%clk 0:02:07]} 21. Bf1 {[%clk 0:01:22]}  Qf6 {[%clk 0:01:53]} 22. Nd3 {[%clk 0:01:18]}  h5 {[%clk 0:01:46]} 23. Rb2 {[%clk 0:01:06]}  h4 {[%clk 0:01:43]} 24. Bg2 {[%clk 0:01:02]}  hxg3 {[%clk 0:01:40]} 25. fxg3 {[%clk 0:00:56]}  fxg3 {[%clk 0:01:40]} 26. hxg3 {[%clk 0:00:56]}  Qg5 {[%clk 0:01:39]} 27. Qc1 {[%clk 0:00:32]}  Qxg3 {[%clk 0:01:37]} 28. Qe3 {[%clk 0:00:32]}  Qxe3+ {[%clk 0:01:30]} 29. Rxe3 {[%clk 0:00:31]}  Nxb3 {[%clk 0:01:21]} 30. Rxb3 {[%clk 0:00:30]}  c4 {[%clk 0:01:16]} 31. Rxb4 {[%clk 0:00:28]}  cxd3 {[%clk 0:01:16]} 32. Rxd3 {[%clk 0:00:26]}  Rxb4 {[%clk 0:01:13]} 33. Nxb4 {[%clk 0:00:26]}  Bxa4 {[%clk 0:01:13]} 34. Ra3 {[%clk 0:00:25]}  Bd1 {[%clk 0:01:09]} 35. Ra6 {[%clk 0:00:22]}  Rf6 {[%clk 0:01:08]} 36. Nc6 {[%clk 0:00:19]}  Bf8 {[%clk 0:01:07]} 37. Ra8 {[%clk 0:00:18]}  Kg7 {[%clk 0:01:04]} 38. Ra7+ {[%clk 0:00:18]}  Rf7 {[%clk 0:01:04]} 39. Ra6 {[%clk 0:00:15]}  Bf3 {[%clk 0:01:00]} 40. Nd8 {[%clk 0:00:15]}  Rf4 {[%clk 0:00:55]} 41. Ne6+ {[%clk 0:00:14]}  Kg8 {[%clk 0:00:53]} 42. Nxf4 {[%clk 0:00:14]}  exf4 {[%clk 0:00:53]} 43. Bxf3 {[%clk 0:00:13]}  Bg7 {[%clk 0:00:53]} 44. Kg2 {[%clk 0:00:13]}  Be5 {[%clk 0:00:52]} 45. Kh3 {[%clk 0:00:13]}  Kg7 {[%clk 0:00:53]} 46. Kg4 {[%clk 0:00:13]}  Kf6 {[%clk 0:00:52]} 47. Ra7 {[%clk 0:00:13]}  g5 {[%clk 0:00:50]} 48. Ra8 {[%clk 0:00:13]}  Bd4 {[%clk 0:00:50]} 49. Re8 {[%clk 0:00:12]}  Be5 {[%clk 0:00:49]} 50. Re6+ {[%clk 0:00:12]}  Kf7 {[%clk 0:00:49]} 51. Kxg5 {[%clk 0:00:11]}  Kg7 {[%clk 0:00:49]} 52. Kf5 {[%clk 0:00:11]}  Kf7 {[%clk 0:00:49]} 53. Rxe5 {[%clk 0:00:10]}  dxe5 {[%clk 0:00:49]} 54. Kxe5 {[%clk 0:00:11]}  Kg6 {[%clk 0:00:46]} 55. Kxf4 {[%clk 0:00:11]} 1-0


[Site "https://www.chess.com"]